[Event "Early-Titled-Tuesday-Blitz-May-14-2024"]
[Site "Chess.com"]
[Date "2024.05.14"]
[Round "4"]
[White "jefferyx"]
[Black "jumpingknight20"]
[Result "1/2-1/2"]
[WhiteElo "3081"]
[BlackElo "2744"]
[TimeControl "180+1"]
[EndTime "8:42:41 PDT"]
[Termination "Game drawn by repetition"]

1. d4 {[%clk 0:03:00.9]} 1... Nf6 {[%clk 0:03:00]} 2. c4 {[%clk 0:03:01.2]} 2...
e6 {[%clk 0:02:59.8]} 3. h4 {[%clk 0:02:58.8]} 3... d5 {[%clk 0:02:58]} 4. h5
{[%clk 0:02:55.5]} 4... h6 {[%clk 0:02:56.7]} 5. e3 {[%clk 0:02:44.1]} 5... c5
{[%clk 0:02:53.9]} 6. dxc5 {[%clk 0:02:42.8]} 6... Bxc5 {[%clk 0:02:53.8]} 7.
Nc3 {[%clk 0:02:43.5]} 7... Nc6 {[%clk 0:02:52.7]} 8. Nf3 {[%clk 0:02:43.6]}
8... O-O {[%clk 0:02:50.5]} 9. Bd2 {[%clk 0:02:40.4]} 9... d4 {[%clk 0:02:40.4]}
10. exd4 {[%clk 0:02:20.5]} 10... Nxd4 {[%clk 0:02:41.3]} 11. Be3 {[%clk
0:02:20.5]} 11... e5 {[%clk 0:02:09.6]} 12. Nxe5 {[%clk 0:02:20.5]} 12... Re8
{[%clk 0:02:06.2]} 13. Nd3 {[%clk 0:02:20.7]} 13... Bg4 {[%clk 0:02:01.3]} 14.
Qd2 {[%clk 0:02:15.1]} 14... Bb6 {[%clk 0:01:51.4]} 15. c5 {[%clk 0:01:42.3]}
15... Bc7 {[%clk 0:01:51.1]} 16. Be2 {[%clk 0:01:31.8]} 16... Nxe2 {[%clk
0:01:27.7]} 17. Nxe2 {[%clk 0:01:32.7]} 17... Ne4 {[%clk 0:01:28.3]} 18. Qc2
{[%clk 0:01:31.1]} 18... Nxf2 {[%clk 0:01:00.1]} 19. Nxf2 {[%clk 0:01:01.5]}
19... Bxe2 {[%clk 0:00:23.7]} 20. Qxe2 {[%clk 0:01:02.4]} 20... Bf4 {[%clk
0:00:20.1]} 21. Rh3 {[%clk 0:00:26]} 21... Qg5 {[%clk 0:00:16.9]} 22. Nd1 {[%clk
0:00:26.3]} 22... Rad8 {[%clk 0:00:15.5]} 23. Kf2 {[%clk 0:00:26.8]} 23... Re4
{[%clk 0:00:09.3]} 24. Kg1 {[%clk 0:00:16.3]} 24... Rde8 {[%clk 0:00:08.2]} 25.
Qf2 {[%clk 0:00:06.4]} 25... Bxe3 {[%clk 0:00:07.2]} 26. Nxe3 {[%clk 0:00:07.3]}
26... Rxe3 {[%clk 0:00:08.1]} 27. Rxe3 {[%clk 0:00:08.2]} 27... Qxe3 {[%clk
0:00:08.2]} 28. Rd1 {[%clk 0:00:07.9]} 28... Qxf2+ {[%clk 0:00:07.6]} 29. Kxf2
{[%clk 0:00:08.8]} 29... Re5 {[%clk 0:00:08.5]} 30. b4 {[%clk 0:00:09.1]} 30...
a5 {[%clk 0:00:07.5]} 31. a3 {[%clk 0:00:09]} 31... axb4 {[%clk 0:00:08.1]} 32.
axb4 {[%clk 0:00:09.9]} 32... Re4 {[%clk 0:00:08.7]} 33. Rb1 {[%clk 0:00:08.9]}
33... Kf8 {[%clk 0:00:08.4]} 34. Kf3 {[%clk 0:00:09.4]} 34... f5 {[%clk
0:00:08.8]} 35. b5 {[%clk 0:00:08.7]} 35... Re5 {[%clk 0:00:07.7]} 36. c6 {[%clk
0:00:08.5]} 36... bxc6 {[%clk 0:00:08.6]} 37. b6 {[%clk 0:00:09]} 37... Re8
{[%clk 0:00:08.7]} 38. Kf4 {[%clk 0:00:06.9]} 38... Rb8 {[%clk 0:00:07.5]} 39.
Kxf5 {[%clk 0:00:07.4]} 39... Ke7 {[%clk 0:00:08.1]} 40. Kg6 {[%clk 0:00:07.8]}
40... c5 {[%clk 0:00:04.8]} 41. Kxg7 {[%clk 0:00:07.6]} 41... c4 {[%clk
0:00:04.7]} 42. Kxh6 {[%clk 0:00:08.2]} 42... c3 {[%clk 0:00:04.5]} 43. Kg7
{[%clk 0:00:05.9]} 43... Rb7 {[%clk 0:00:03.9]} 44. Rc1 {[%clk 0:00:05.7]} 44...
Ke8+ {[%clk 0:00:03.2]} 45. Kg8 {[%clk 0:00:04.3]} 45... Rxb6 {[%clk 0:00:03.8]}
46. Rxc3 {[%clk 0:00:04.8]} 46... Rb5 {[%clk 0:00:04.5]} 47. h6 {[%clk
0:00:03.2]} 47... Rg5+ {[%clk 0:00:04.4]} 48. Kh7 {[%clk 0:00:02.9]} 48... Rxg2
{[%clk 0:00:05.3]} 49. Rf3 {[%clk 0:00:01.9]} 49... Ke7 {[%clk 0:00:05.4]} 50.
Rf4 {[%clk 0:00:02.3]} 50... Ke8 {[%clk 0:00:05.5]} 51. Rf3 {[%clk 0:00:02.7]}
51... Ke7 {[%clk 0:00:06]} 52. Rf4 {[%clk 0:00:03.3]} 52... Ke8 {[%clk
0:00:06.6]} 53. Kh8 {[%clk 0:00:03.7]} 53... Ke7 {[%clk 0:00:07]} 54. Rf5 {[%clk
0:00:04.1]} 54... Ke8 {[%clk 0:00:07.5]} 55. h7 {[%clk 0:00:04.7]} 55... Ke7
{[%clk 0:00:08.1]} 56. Ra5 {[%clk 0:00:05.3]} 56... Kf7 {[%clk 0:00:08.7]} 57.
Ra7+ {[%clk 0:00:05.7]} 57... Kf8 {[%clk 0:00:08.5]} 58. Ra8+ {[%clk 0:00:06.6]}
58... Kf7 {[%clk 0:00:09.2]} 59. Rg8 {[%clk 0:00:07.5]} 59... Rh2 {[%clk
0:00:07.5]} 60. Rg7+ {[%clk 0:00:08]} 60... Kf8 {[%clk 0:00:08]} 61. Rg3 {[%clk
0:00:08.4]} 61... Rh1 {[%clk 0:00:07.9]} 62. Rf3+ {[%clk 0:00:08.7]} 62... Ke7
{[%clk 0:00:08.5]} 63. Kg7 {[%clk 0:00:09.1]} 63... Rg1+ {[%clk 0:00:08.9]} 64.
Kh6 {[%clk 0:00:09.7]} 64... Rh1+ {[%clk 0:00:09.5]} 65. Kg6 {[%clk 0:00:10]}
65... Rg1+ {[%clk 0:00:09.8]} 66. Kf5 {[%clk 0:00:09.9]} 66... Rh1 {[%clk
0:00:10.2]} 67. Kg6 {[%clk 0:00:10.5]} 67... Rg1+ {[%clk 0:00:10.8]} 68. Kh6
{[%clk 0:00:11.2]} 68... Rh1+ {[%clk 0:00:11.4]} 69. Kg7 {[%clk 0:00:11.8]}
69... Rg1+ {[%clk 0:00:12.1]} 70. Kh8 {[%clk 0:00:12.1]} 70... Ke8 {[%clk
0:00:12.3]} 71. Rf4 {[%clk 0:00:10.9]} 71... Ke7 {[%clk 0:00:12.7]} 72. Ra4
{[%clk 0:00:11.5]} 72... Kf8 {[%clk 0:00:12]} 73. Ra8+ {[%clk 0:00:11.9]} 73...
Kf7 {[%clk 0:00:12.7]} 74. Rg8 {[%clk 0:00:12.8]} 74... Ra1 {[%clk 0:00:10.2]}
75. Rb8 {[%clk 0:00:11.3]} 75... Rg1 {[%clk 0:00:09.9]} 76. Rb7+ {[%clk
0:00:11.3]} 76... Kf8 {[%clk 0:00:09.9]} 77. Rb8+ {[%clk 0:00:11.4]} 77... Kf7
{[%clk 0:00:10.3]} 78. Rb7+ {[%clk 0:00:11.4]} 78... Kf8 {[%clk 0:00:10.4]} 79.
Rb8+ {[%clk 0:00:11.7]} 79... Kf7 {[%clk 0:00:10.9]} 1/2-1/2

[Event "Early-Titled-Tuesday-Blitz-May-14-2024"]
[Site "Chess.com"]
[Date "2024.05.14"]
[Round "4"]
[White "arenal72"]
[Black "super_emi_26"]
[Result "0-1"]
[WhiteElo "2628"]
[BlackElo "2895"]
[TimeControl "180+1"]
[EndTime "8:42:41 PDT"]
[Termination "super_emi_26 won by resignation"]

1. Nf3 {[%clk 0:03:00.9]} 1... Nf6 {[%clk 0:02:59.5]} 2. g3 {[%clk 0:02:59.9]}
2... g6 {[%clk 0:03:00.4]} 3. Bg2 {[%clk 0:03:00.2]} 3... Bg7 {[%clk 0:03:01.3]}
4. O-O {[%clk 0:03:00.5]} 4... O-O {[%clk 0:03:02.2]} 5. d3 {[%clk 0:03:00.9]}
5... d5 {[%clk 0:03:02.1]} 6. Nbd2 {[%clk 0:03:01.2]} 6... b6 {[%clk 0:03:02.8]}
7. e4 {[%clk 0:02:58.3]} 7... e6 {[%clk 0:02:47.4]} 8. Qe2 {[%clk 0:02:54.5]}
8... dxe4 {[%clk 0:02:43.7]} 9. dxe4 {[%clk 0:02:52.7]} 9... Ba6 {[%clk
0:02:40.3]} 10. c4 {[%clk 0:02:36.1]} 10... Nc6 {[%clk 0:02:40]} 11. Rd1 {[%clk
0:02:26.6]} 11... Nd7 {[%clk 0:02:34.7]} 12. Nb3 {[%clk 0:02:19.7]} 12... Qe8
{[%clk 0:02:18.8]} 13. Bf4 {[%clk 0:01:57.1]} 13... Nde5 {[%clk 0:02:17.1]} 14.
Nxe5 {[%clk 0:01:56.5]} 14... Nxe5 {[%clk 0:02:17.2]} 15. Bxe5 {[%clk
0:01:54.1]} 15... Bxe5 {[%clk 0:02:18.1]} 16. f4 {[%clk 0:01:54.2]} 16... Bg7
{[%clk 0:02:18.2]} 17. e5 {[%clk 0:01:54.5]} 17... Rd8 {[%clk 0:02:17.4]} 18.
Nd4 {[%clk 0:01:36.7]} 18... Qe7 {[%clk 0:01:45.6]} 19. b3 {[%clk 0:01:24.3]}
19... c5 {[%clk 0:01:18.3]} 20. Nb5 {[%clk 0:01:14]} 20... Bxb5 {[%clk
0:01:15.7]} 21. cxb5 {[%clk 0:01:14.9]} 21... Rd4 {[%clk 0:01:11.7]} 22. Rxd4
{[%clk 0:01:12.2]} 22... cxd4 {[%clk 0:01:12.6]} 23. Qc4 {[%clk 0:01:12.3]}
23... Rd8 {[%clk 0:01:12.5]} 24. Rd1 {[%clk 0:01:11]} 24... Qa3 {[%clk
0:01:11.8]} 25. Rxd4 {[%clk 0:00:58.1]} 25... Rxd4 {[%clk 0:01:10.7]} 26. Qxd4
{[%clk 0:00:59]} 26... Qxa2 {[%clk 0:01:01.1]} 27. Qd3 {[%clk 0:00:46.1]} 27...
Bf8 {[%clk 0:01:00.4]} 28. h4 {[%clk 0:00:44.7]} 28... Bc5+ {[%clk 0:01:00.5]}
29. Kh2 {[%clk 0:00:44.5]} 29... h5 {[%clk 0:00:59.9]} 30. Kh3 {[%clk
0:00:43.8]} 30... Qf2 {[%clk 0:00:58.8]} 31. Qd8+ {[%clk 0:00:41.9]} 31... Kg7
{[%clk 0:00:58.2]} 32. Qf6+ {[%clk 0:00:41.3]} 32... Kg8 {[%clk 0:00:58.6]} 33.
Qd8+ {[%clk 0:00:41.5]} 33... Bf8 {[%clk 0:00:57.8]} 34. Qd7 {[%clk 0:00:40]}
34... Qa2 {[%clk 0:00:57.5]} 35. Qd3 {[%clk 0:00:38.2]} 35... Qa3 {[%clk
0:00:52.2]} 36. Be4 {[%clk 0:00:35.2]} 36... Kg7 {[%clk 0:00:51.2]} 37. Bg2
{[%clk 0:00:31.9]} 37... Be7 {[%clk 0:00:50.9]} 38. Qd7 {[%clk 0:00:29.4]} 38...
Bc5 {[%clk 0:00:50.4]} 39. Qd3 {[%clk 0:00:27.9]} 39... Qb2 {[%clk 0:00:49]} 40.
Bf3 {[%clk 0:00:25.4]} 40... Bb4 {[%clk 0:00:45.8]} 41. Qd8 {[%clk 0:00:20.5]}
41... Qxb3 {[%clk 0:00:41.5]} 42. Qf6+ {[%clk 0:00:19.1]} 42... Kg8 {[%clk
0:00:42]} 43. Be4 {[%clk 0:00:17.4]} 43... Qd1 {[%clk 0:00:38]} 44. Kh2 {[%clk
0:00:10.7]} 44... Bc5 {[%clk 0:00:36.7]} 45. Kh3 {[%clk 0:00:07.7]} 45... Qf1+
{[%clk 0:00:35.7]} 46. Bg2 {[%clk 0:00:07.1]} 46... Qxb5 {[%clk 0:00:34.9]} 47.
Qd8+ {[%clk 0:00:05.2]} 47... Kg7 {[%clk 0:00:35.3]} 48. Qf6+ {[%clk 0:00:05.1]}
48... Kg8 {[%clk 0:00:35.8]} 49. Qd8+ {[%clk 0:00:05.5]} 49... Bf8 {[%clk
0:00:36.4]} 50. Qc7 {[%clk 0:00:05.3]} 50... a5 {[%clk 0:00:34.4]} 51. Qc2
{[%clk 0:00:05.8]} 51... a4 {[%clk 0:00:33.7]} 52. Be4 {[%clk 0:00:05.7]} 52...
Qf1+ {[%clk 0:00:29.1]} 53. Kh2 {[%clk 0:00:05.7]} 53... Bc5 {[%clk 0:00:28.5]}
54. Bg2 {[%clk 0:00:05.6]} 54... Qg1+ {[%clk 0:00:27.9]} 55. Kh3 {[%clk
0:00:05.7]} 55... Qd4 {[%clk 0:00:27.8]} 56. Be4 {[%clk 0:00:04.9]} 56... a3
{[%clk 0:00:28.3]} 57. Bxg6 {[%clk 0:00:04.6]} 57... a2 {[%clk 0:00:27.3]} 58.
Bxf7+ {[%clk 0:00:03.5]} 58... Kf8 {[%clk 0:00:27.6]} 59. Qh7 {[%clk 0:00:04.2]}
59... Ke7 {[%clk 0:00:24]} 60. Qg8 {[%clk 0:00:04.2]} 60... Qd8 {[%clk
0:00:23.4]} 61. Qg5+ {[%clk 0:00:04.3]} 61... Kxf7 {[%clk 0:00:23.7]} 62. Qxd8
{[%clk 0:00:04.8]} 62... a1=Q {[%clk 0:00:23.9]} 63. Qf6+ {[%clk 0:00:05.1]}
63... Ke8 {[%clk 0:00:24.4]} 64. Qxe6+ {[%clk 0:00:05.6]} 64... Kd8 {[%clk
0:00:25.1]} 65. Qf6+ {[%clk 0:00:05.3]} 65... Kc7 {[%clk 0:00:25.5]} 66. Qg7+
{[%clk 0:00:05.4]} 66... Kc6 {[%clk 0:00:25.1]} 67. Qg6+ {[%clk 0:00:05.7]}
67... Kd5 {[%clk 0:00:19.2]} 68. Qxh5 {[%clk 0:00:04.8]} 68... Qh1+ {[%clk
0:00:18.4]} 69. Kg4 {[%clk 0:00:05.4]} 69... Qd1+ {[%clk 0:00:19]} 70. Kg5
{[%clk 0:00:06]} 70... Qxh5+ {[%clk 0:00:19]} 71. Kxh5 {[%clk 0:00:06.9]} 71...
b5 {[%clk 0:00:19.6]} 72. Kg6 {[%clk 0:00:07.3]} 72... b4 {[%clk 0:00:20.1]} 73.
h5 {[%clk 0:00:08]} 73... b3 {[%clk 0:00:20.8]} 74. h6 {[%clk 0:00:08.5]} 74...
b2 {[%clk 0:00:21.5]} 75. h7 {[%clk 0:00:08.9]} 75... b1=Q+ {[%clk 0:00:22.1]}
76. Kg7 {[%clk 0:00:09.3]} 76... Qb7+ {[%clk 0:00:21.2]} 77. Kg8 {[%clk
0:00:07]} 77... Qc8+ {[%clk 0:00:21.5]} 78. Kg7 {[%clk 0:00:07.6]} 78... Qd7+
{[%clk 0:00:22]} 79. Kg6 {[%clk 0:00:07.5]} 79... Qe8+ {[%clk 0:00:22.2]} 80.
Kg7 {[%clk 0:00:07]} 80... Qf8+ {[%clk 0:00:22.1]} 81. Kg6 {[%clk 0:00:07]}
81... Ke6 {[%clk 0:00:20.9]} 82. g4 {[%clk 0:00:05.9]} 82... Qf7+ {[%clk
0:00:21.2]} 83. Kh6 {[%clk 0:00:05.2]} 83... Bf8+ {[%clk 0:00:21.3]} 84. Kg5
{[%clk 0:00:05]} 84... Qxh7 {[%clk 0:00:17.5]} 85. f5+ {[%clk 0:00:05.3]} 85...
Kxe5 {[%clk 0:00:17.4]} 0-1

[Event "Early-Titled-Tuesday-Blitz-May-14-2024"]
[Site "Chess.com"]
[Date "2024.05.14"]
[Round "4"]
[White "Legendinunknown"]
[Black "Thjop"]
[Result "1-0"]
[WhiteElo "2833"]
[BlackElo "2605"]
[TimeControl "180+1"]
[EndTime "8:42:48 PDT"]
[Termination "Legendinunknown won by resignation"]

1. Nf3 {[%clk 0:03:00.9]} 1... Nf6 {[%clk 0:02:59.8]} 2. c4 {[%clk 0:02:59.7]}
2... g6 {[%clk 0:03:00.7]} 3. Nc3 {[%clk 0:02:57.5]} 3... Bg7 {[%clk 0:03:01.6]}
4. e4 {[%clk 0:02:57.6]} 4... d6 {[%clk 0:03:02]} 5. d4 {[%clk 0:02:58.1]} 5...
O-O {[%clk 0:03:02.3]} 6. Be2 {[%clk 0:02:58.5]} 6... e5 {[%clk 0:03:02.7]} 7.
O-O {[%clk 0:02:58.9]} 7... Nc6 {[%clk 0:03:03.2]} 8. d5 {[%clk 0:02:58.9]} 8...
Ne7 {[%clk 0:03:03.8]} 9. Kh1 {[%clk 0:02:58]} 9... Nd7 {[%clk 0:02:59.8]} 10.
g4 {[%clk 0:02:57.1]} 10... a5 {[%clk 0:02:54.8]} 11. Rg1 {[%clk 0:02:56.5]}
11... Nc5 {[%clk 0:02:52.2]} 12. Be3 {[%clk 0:02:55.8]} 12... b6 {[%clk
0:02:52.2]} 13. Qd2 {[%clk 0:02:55.7]} 13... Kh8 {[%clk 0:02:50.9]} 14. Bh6
{[%clk 0:02:55.7]} 14... Bxh6 {[%clk 0:02:48.3]} 15. Qxh6 {[%clk 0:02:55.4]}
15... Ng8 {[%clk 0:02:48.8]} 16. Qe3 {[%clk 0:02:55.3]} 16... h6 {[%clk
0:02:45.3]} 17. Rg2 {[%clk 0:02:52.1]} 17... Kg7 {[%clk 0:02:44.4]} 18. h4
{[%clk 0:02:44.7]} 18... Bd7 {[%clk 0:02:38.3]} 19. Rag1 {[%clk 0:02:43.7]}
19... a4 {[%clk 0:02:31.9]} 20. Bd1 {[%clk 0:02:40.7]} 20... Ne7 {[%clk
0:02:23.4]} 21. g5 {[%clk 0:02:39]} 21... h5 {[%clk 0:02:22]} 22. Ne2 {[%clk
0:02:38.8]} 22... Qc8 {[%clk 0:02:16.8]} 23. Ng3 {[%clk 0:02:36.3]} 23... Rh8
{[%clk 0:02:15.3]} 24. Nd2 {[%clk 0:02:29]} 24... Qe8 {[%clk 0:01:57.5]} 25. f4
{[%clk 0:02:10.3]} 25... exf4 {[%clk 0:01:50.1]} 26. Qxf4 {[%clk 0:02:11.2]}
26... Ng8 {[%clk 0:01:50.4]} 27. Nf3 {[%clk 0:02:03.2]} 27... Nd3 {[%clk
0:01:46.6]} 28. Qe3 {[%clk 0:01:58.1]} 28... Ne5 {[%clk 0:01:46.7]} 29. Qc3
{[%clk 0:01:57.9]} 29... Qe7 {[%clk 0:01:38.7]} 30. Rf2 {[%clk 0:01:55.7]} 30...
Rh7 {[%clk 0:01:31.3]} 31. Rgf1 {[%clk 0:01:52.7]} 31... Kf8 {[%clk 0:01:30.6]}
32. Nxe5 {[%clk 0:01:45.8]} 32... Qxe5 {[%clk 0:01:28]} 33. Qxe5 {[%clk
0:01:41.9]} 33... dxe5 {[%clk 0:01:28.9]} 34. Bxh5 {[%clk 0:01:42.1]} 34... Ke7
{[%clk 0:01:23]} 35. Bd1 {[%clk 0:01:19.9]} 35... Rxh4+ {[%clk 0:01:22.6]} 36.
Rh2 {[%clk 0:01:18.5]} 36... Rxh2+ {[%clk 0:01:22.1]} 37. Kxh2 {[%clk
0:01:18.8]} 37... f6 {[%clk 0:01:12.5]} 38. gxf6+ {[%clk 0:01:10.9]} 38... Nxf6
{[%clk 0:01:13.4]} 39. Kg2 {[%clk 0:01:11.1]} 39... Rh8 {[%clk 0:01:08.4]} 40.
Rf2 {[%clk 0:01:00.1]} 40... Rh4 {[%clk 0:01:07.8]} 41. Bf3 {[%clk 0:00:58]}
41... Bh3+ {[%clk 0:01:05.7]} 42. Kg1 {[%clk 0:00:57.7]} 42... Nd7 {[%clk
0:01:01.8]} 43. Ne2 {[%clk 0:00:53.5]} 43... Nc5 {[%clk 0:00:59.4]} 44. Nc3
{[%clk 0:00:53.6]} 44... Bd7 {[%clk 0:00:57.9]} 45. Bg2 {[%clk 0:00:45.8]} 45...
g5 {[%clk 0:00:56.1]} 46. Re2 {[%clk 0:00:38]} 46... Kd6 {[%clk 0:00:52.2]} 47.
Re3 {[%clk 0:00:35.3]} 47... Rf4 {[%clk 0:00:47.9]} 48. Bf1 {[%clk 0:00:32.5]}
48... Be8 {[%clk 0:00:40.4]} 49. Be2 {[%clk 0:00:29.2]} 49... Bd7 {[%clk
0:00:38.8]} 50. Kg2 {[%clk 0:00:27.6]} 50... Rh4 {[%clk 0:00:37.8]} 51. Bd1
{[%clk 0:00:20.5]} 51... Ke7 {[%clk 0:00:34.3]} 52. Bc2 {[%clk 0:00:19.6]} 52...
Be8 {[%clk 0:00:28.4]} 53. b4 {[%clk 0:00:19.4]} 53... axb3 {[%clk 0:00:28.2]}
54. axb3 {[%clk 0:00:20.1]} 54... Nd7 {[%clk 0:00:25.3]} 55. Rg3 {[%clk
0:00:19.8]} 55... Kf6 {[%clk 0:00:24.4]} 56. Nb5 {[%clk 0:00:20.2]} 56... Bg6
{[%clk 0:00:20.7]} 57. Nxc7 {[%clk 0:00:19.1]} 57... Bxe4+ {[%clk 0:00:20.4]}
58. Bxe4 {[%clk 0:00:19.4]} 58... Rxe4 {[%clk 0:00:21.1]} 59. Nb5 {[%clk
0:00:19.6]} 59... Rf4 {[%clk 0:00:18.1]} 60. Rh3 {[%clk 0:00:19.5]} 60... Nc5
{[%clk 0:00:17]} 61. Rh6+ {[%clk 0:00:19.4]} 61... Kf5 {[%clk 0:00:17.3]} 62.
Rxb6 {[%clk 0:00:17.7]} 62... e4 {[%clk 0:00:15.9]} 63. d6 {[%clk 0:00:17.5]}
63... e3 {[%clk 0:00:13.6]} 64. Nc3 {[%clk 0:00:15.1]} 64... Rf2+ {[%clk
0:00:09]} 65. Kg3 {[%clk 0:00:13]} 65... Rc2 {[%clk 0:00:03.7]} 66. Rb5 {[%clk
0:00:12.9]} 66... Rxc3 {[%clk 0:00:03]} 67. Rxc5+ {[%clk 0:00:13.1]} 67... Ke6
{[%clk 0:00:03.7]} 68. Rd5 {[%clk 0:00:11.9]} 68... Kd7 {[%clk 0:00:04]} 69.
Rxg5 {[%clk 0:00:10.4]} 69... Kxd6 {[%clk 0:00:03.2]} 70. Rb5 {[%clk 0:00:10.5]}
70... Kc6 {[%clk 0:00:02.8]} 71. Kf3 {[%clk 0:00:10.7]} 71... Kd6 {[%clk
0:00:02.5]} 72. Ke2 {[%clk 0:00:11]} 72... Kc6 {[%clk 0:00:02.9]} 73. Rb8 {[%clk
0:00:11]} 73... Kc5 {[%clk 0:00:03.2]} 74. Rb7 {[%clk 0:00:11.4]} 74... Kc6
{[%clk 0:00:03.7]} 75. Rb5 {[%clk 0:00:11.6]} 75... Kd6 {[%clk 0:00:04]} 76.
Rd5+ {[%clk 0:00:11.9]} 76... Kc6 {[%clk 0:00:04.4]} 77. Rd3 {[%clk 0:00:12.4]}
77... Rc2+ {[%clk 0:00:03.6]} 78. Kxe3 {[%clk 0:00:12.8]} 78... Rb2 {[%clk
0:00:04.2]} 79. Kd4 {[%clk 0:00:12.8]} 79... Rh2 {[%clk 0:00:05.1]} 80. Re3
{[%clk 0:00:12.4]} 80... Rh6 {[%clk 0:00:06]} 81. Kc3 {[%clk 0:00:12.6]} 81...
Rh4 {[%clk 0:00:06.6]} 82. b4 {[%clk 0:00:13.2]} 82... Rh3 {[%clk 0:00:06.9]}
83. b5+ {[%clk 0:00:13]} 83... Kc5 {[%clk 0:00:06.5]} 84. Rxh3 {[%clk
0:00:13.7]} 1-0